bitfinex-derivatives/quotes_ETHF0:USTF0_20250212
["timestamp","ask_amount","ask_price","bid_price","bid_amount"]
[1739327253762,0.0057501,2612.8,2612.7,40.8]
[1739327253967,1.147,2613.5,2612.7,41.26777384]
[1739327254259,1.147,2613.5,2613.1,3.2078]
[1739327254260,0.5643,2613.5,2613.1,3.2078]
[1739327254566,0.5643,2613.5,2613.2,0.5622]
[1739327256365,4.08901008,2613.4,2613.2,0.5622]
[1739327258064,7.29681008,2613.4,2613.2,0.5622]
[1739327258265,7.29681008,2613.4,2613.1,0.0057501]
[1739327258766,3.15707316,2613.3,2613.1,0.0057501]
[1739327259266,4.27903566,2613.2,2613.1,0.0057501]
[1739327261673,0.5643,2613.5,2613.1,0.0057501]
[1739327262167,4.34488786,2613.3,2613.1,0.0057501]
[1739327262363,4.34488786,2613.4,2613.1,0.0057501]
[1739327262668,0.5643,2613.5,2613.1,0.0057501]
[1739327262966,4.36507891,2613.4,2613.1,0.0057501]
[1739327264066,3.15707316,2613.3,2613.1,0.0057501]
[1739327264471,7.52050966,2613.2,2613.1,0.0057501]
[1739327267080,4.31270966,2613.2,2613.1,0.0057501]
[1739327267273,7.52050966,2613.2,2613.1,0.0057501]
[1739327280076,7.52050966,2613.2,2613.1,40.8057501]
[1739327281387,7.52050966,2613.2,2613.1,0.0057501]
[1739327284579,9.20950966,2613.2,2613.1,0.0057501]
[1739327285188,9.20950966,2613.2,2613.1,40.8057501]
[1739327287188,9.20950966,2613.2,2613.1,0.0057501]
[1739327291695,3.2078,2613.2,2613.1,0.0057501]
[1739327292289,3.2078,2613.2,2613.1,40.8057501]
[1739327293795,3.2078,2613.2,2613.1,0.0057501]
[1739327293992,7.26381017,2613.2,2613.1,0.0057501]
[1739327294790,7.32912032,2613.2,2613.1,0.0057501]
[1739327295585,7.32912008,2613.2,2613.1,0.0057501]
[1739327296290,7.26381017,2613.2,2613.1,0.0057501]
[1739327297593,4.05601017,2613.2,2613.1,0.0057501]
[1739327298592,7.26381017,2613.2,2613.1,0.0057501]
[1739327299495,10.24281017,2613.2,2613.1,0.0057501]
[1739327300590,10.30811957,2613.2,2613.1,0.0057501]
[1739327302596,16.30809559,2613.2,2613.1,0.0057501]
[1739327302897,16.6671994,2613.2,2613.1,0.0057501]
[1739327303194,17.61073256,2613.2,2612.7,40.8]
[1739327303498,6.36487316,2612.8,2612.7,40.8]
[1739327303697,11.03187316,2612.8,2612.7,40.8]
[1739327303900,15.42115033,2612.8,2612.7,40.8]
[1739327304491,15.42115033,2612.8,2612.5,0.0057501]
[1739327304797,0.558,2612.7,2612.5,0.0057501]
[1739327304992,0.558,2612.7,2612.6,40.8]
[1739327305496,4.84878799,2612.7,2612.6,40.8]
[1739327306593,4.29078799,2612.7,2612.6,40.8]
[1739327306793,4.29078799,2612.7,2612.6,41.3879]
[1739327307192,4.29078799,2612.7,2612.6,41.9502]
[1739327308298,3.15707316,2612.8,2612.6,42.41807055]
[1739327308498,3.15707316,2612.8,2612.6,42.5409]
[1739327309299,4.43137041,2612.7,2612.6,41.9502]
[1739327313002,4.43137041,2612.7,2612.6,40.8]
[1739327313199,5.00117041,2612.7,2612.6,40.8]
[1739327314504,4.43137041,2612.7,2612.6,40.8]
[1739327320805,7.63917041,2612.7,2612.5,0.0057501]
[1739327321001,4.43137041,2612.7,2612.5,0.0057501]
[1739327321310,4.43137041,2612.7,2612.6,40.8]
[1739327329607,20.62317041,2612.7,2612.5,0.0057501]
[1739327329801,0.06526309,2612.6,2611.7,0.5667]
[1739327330113,3.15707316,2612.1,2611.8,41.26839311]
[1739327330313,4.84507316,2612.1,2611.8,40.8]
[1739327330510,4.10563189,2612.0,2611.8,40.8]
[1739327330910,4.10563189,2612.0,2611.9,0.41428749]
[1739327332017,4.10563189,2612.0,2611.9,0.98604961]
[1739327332217,4.10563189,2612.0,2611.9,0.98588939]
[1739327333313,4.10563189,2612.0,2611.9,0.41412727]
[1739327334214,4.10563189,2612.0,2611.9,0.4138892]
[1739327334717,7.31343189,2612.0,2611.8,40.8]
[1739327335017,0.5689,2611.9,2611.8,40.8]
[1739327335220,0.5689,2611.9,2611.8,41.21376601]
[1739327335418,4.71947743,2611.9,2611.8,41.21376601]
[1739327335717,4.71947743,2611.9,2611.8,40.8]
[1739327338811,4.71947743,2611.9,2611.6,0.0057501]
[1739327339015,3.15707316,2611.7,2611.6,0.0057501]
[1739327339210,3.15707316,2611.7,2611.6,40.8057501]
[1739327339417,7.58719209,2611.7,2611.6,40.8057501]
[1739327344719,8.16869209,2611.7,2611.6,40.8057501]
[1739327346723,8.75389209,2611.7,2611.6,40.8057501]
[1739327353514,4.43011893,2611.7,2611.6,40.8057501]
[1739327353924,3.15707316,2611.7,2611.6,40.8057501]
[1739327354219,7.48937162,2611.7,2611.6,40.8057501]
[1739327354422,4.33229846,2611.7,2611.6,41.21902805]
[1739327354719,4.8958,2611.9,2611.6,41.21902805]
[1739327354927,4.37594158,2611.8,2611.6,40.8057501]
[1739327355128,1.688,2611.8,2611.7,0.5994]
[1739327355324,6.06394158,2611.8,2611.7,0.5994]
[1739327358130,6.06394158,2611.8,2611.6,0.0057501]
[1739327358328,4.31657316,2611.7,2611.6,0.0057501]
[1739327358528,4.31657316,2611.7,2611.6,40.8057501]
[1739327358827,8.67990447,2611.7,2611.6,40.8057501]
[1739327359226,8.67990447,2611.7,2611.6,41.22005845]
[1739327359823,8.67990447,2611.7,2611.6,0.42005845]
[1739327360223,8.67990447,2611.7,2611.6,0.4200973]
[1739327362635,8.67990447,2611.7,2611.6,0.4202168]
[1739327363932,11.88770447,2611.7,2611.6,0.4202168]
[1739327365133,11.88770447,2611.7,2611.6,0.0057501]
[1739327365324,11.88770447,2611.7,2611.6,0.42033091]
[1739327367330,11.88770447,2611.7,2611.6,0.0057501]
[1739327367525,11.95297071,2611.7,2611.6,0.0057501]
[1739327367833,10.28093436,2611.7,2611.6,0.0057501]
[1739327368139,10.34619988,2611.7,2611.6,0.0057501]
[1739327368334,10.28093436,2611.7,2611.6,0.0057501]
[1739327368935,10.34619828,2611.7,2611.6,0.0057501]
[1739327369139,10.28093436,2611.7,2611.6,0.0057501]
[1739327369338,10.34619774,2611.7,2611.6,0.0057501]
[1739327371237,10.28093436,2611.7,2611.6,0.0057501]
[1739327371737,10.28093436,2611.7,2611.6,40.8057501]
[1739327372342,5.91363436,2611.7,2611.6,40.8057501]
[1739327372541,5.91363436,2611.7,2611.6,41.22032007]
[1739327373038,5.91363436,2611.7,2611.6,41.22032615]
[1739327373741,7.51128686,2611.7,2611.6,41.22032615]
[1739327375840,10.71908686,2611.7,2611.6,0.0057501]
[1739327376344,10.78434926,2611.7,2611.6,0.0057501]
[1739327377936,10.71908686,2611.7,2611.6,0.0057501]
[1739327379548,10.78433128,2611.7,2611.6,0.0057501]
[1739327379744,10.78433117,2611.7,2611.6,0.0057501]
[1739327380745,10.71908686,2611.7,2611.6,0.0057501]
[1739327383044,10.78432527,2611.7,2611.6,0.0057501]
[1739327386148,10.78433202,2611.7,2611.6,0.0057501]
[1739327387235,11.93333202,2611.7,2611.6,0.0057501]
[1739327387939,11.86808686,2611.7,2611.6,0.0057501]
[1739327388135,11.93332909,2611.7,2611.6,0.0057501]
[1739327389843,11.93333987,2611.7,2611.6,0.0057501]
[1739327390748,12.69923987,2611.7,2611.6,0.0057501]
[1739327390948,0.76593,2611.6,2610.9,1.2029]
[1739327391142,6.35575555,2611.0,2610.9,1.2029]
[1739327391338,8.04375555,2611.0,2610.9,1.2029]
[1739327391542,12.17282412,2611.0,2610.9,1.2029]
[1739327396153,12.17282412,2611.0,2610.9,0.601]
[1739327401855,10.57547974,2611.0,2610.9,0.601]
[1739327402459,10.57547974,2611.0,2610.9,41.401]
[1739327403956,10.57547974,2611.0,2610.9,0.601]
[1739327404454,11.15127974,2611.0,2610.9,0.601]
[1739327404853,11.15127974,2611.0,2610.7,40.8057501]
[1739327404854,11.21645867,2611.0,2610.7,40.8057501]
[1739327405057,1.55061117,2610.8,2610.7,40.8057501]
[1739327405561,5.70778693,2610.8,2610.7,40.8057501]
[1739327406263,5.77296215,2610.8,2610.7,0.0057501]
[1739327406453,5.77296087,2610.8,2610.7,0.0057501]
[1739327406854,5.77296088,2610.8,2610.7,0.0057501]
[1739327407355,7.32357205,2610.8,2610.7,0.0057501]
[1739327407557,8.08973205,2610.8,2610.7,0.0057501]
[1739327407751,7.37399301,2610.8,2610.7,0.0057501]
[1739327408556,7.37399074,2610.8,2610.7,0.0057501]
[1739327408759,7.37399074,2610.8,2610.2,1.2176]
[1739327408760,13.37399074,2610.8,2610.2,1.2176]
[1739327408955,6.3594433,2610.3,2610.2,1.2176]
[1739327409156,8.0474433,2610.3,2610.0,40.8]
[1739327409357,1.82316212,2610.2,2609.8,1.1249]
[1739327409559,6.3594433,2609.9,2609.3,0.6001]
[1739327409758,3.1516433,2609.6,2609.4,42.3386003]
[1739327409964,3.1516433,2609.6,2609.5,0.4137003]
[1739327410258,7.36132072,2609.6,2609.4,1.1249]
[1739327410760,7.36132072,2609.6,2609.5,40.8]
[1739327411852,4.20967742,2609.6,2609.5,40.8]
[1739327412864,1.6937501,2609.9,2609.5,47.21307697]
[1739327413059,1.6937501,2609.9,2609.6,0.41307697]
[1739327413257,1.6937501,2609.9,2609.7,0.41307697]
[1739327413458,1.6937501,2609.9,2609.8,0.5629]
[1739327414259,1.6937501,2609.9,2609.8,0.97591544]
[1739327417260,0.0057501,2609.9,2609.8,0.97591544]
[1739327417667,0.0057501,2609.9,2609.8,0.97600021]
[1739327419665,0.0057501,2609.9,2609.8,0.97608072]
[1739327420369,0.0057501,2609.9,2609.8,1.55068072]
[1739327421673,0.0057501,2609.9,2609.8,1.55074942]
[1739327422076,1.688,2610.7,2609.9,0.76641]
[1739327422374,1.688,2610.7,2610.1,3.2078]
[1739327422375,4.29527029,2610.6,2610.1,3.2078]
[1739327422570,4.29527029,2610.6,2610.2,0.41322457]
[1739327422775,4.29527029,2610.6,2610.3,41.77722457]
[1739327422972,4.29527029,2610.6,2610.4,0.41322457]
[1739327423174,4.29527029,2610.6,2610.5,0.5633]
[1739327424479,4.29527029,2610.6,2610.5,0.9765889]
[1739327425784,4.29527029,2610.6,2610.5,0.5633]
[1739327425991,4.29527029,2610.6,2609.8,3.2078]
[1739327426187,3.772,2610.5,2609.9,0.88008786]
[1739327426378,3.772,2610.5,2609.8,4.9638]
[1739327426379,3.1516433,2610.4,2610.0,41.21334469]
[1739327426577,7.20636158,2610.4,2610.1,0.41334469]
[1739327426790,0.5954,2610.3,2610.0,41.37071291]
[1739327426992,0.5616,2610.2,2610.1,0.41340566]
[1739327427190,4.83419002,2610.2,2610.1,0.41340566]
[1739327427890,4.83419002,2610.2,2610.0,40.8]
[1739327429591,4.27259002,2610.2,2610.0,40.8]
[1739327431188,3.1516433,2610.1,2610.0,40.8]
[1739327431391,3.1516433,2610.1,2610.0,41.21359106]
[1739327431587,7.50162591,2610.1,2610.0,41.21359106]
[1739327431991,7.50162591,2610.1,2610.0,41.21360657]
[1739327433000,4.34998261,2610.1,2610.0,41.21360657]
[1739327433393,4.29221707,2610.2,2610.0,41.21360657]
[1739327433596,2.979,2610.4,2610.1,0.41360657]
[1739327433892,2.979,2610.4,2610.2,0.98488167]
[1739327434094,2.979,2610.4,2610.3,1.00118995]
[1739327434294,6.5511934,2610.7,2610.3,1.60888995]
[1739327434494,6.5511934,2610.7,2610.4,0.41378995]
[1739327434694,4.21562166,2610.6,2610.5,0.41383616]
[1739327434893,0.0057501,2610.7,2610.5,0.41383616]
[1739327435101,0.0057501,2610.7,2610.6,0.41383616]
[1739327436101,0.0057501,2610.7,2610.6,0.98494342]
[1739327436496,0.0057501,2610.7,2610.6,0.413741]
[1739327438093,0.0057501,2610.7,2610.3,1.1951]
[1739327438297,0.0057501,2610.7,2610.4,0.88053288]
[1739327438493,0.0057501,2610.7,2610.5,0.88045098]
[1739327438699,0.0057501,2610.7,2610.6,1.44283712]
[1739327439202,0.0057501,2610.7,2610.6,1.54675258]
[1739327441201,0.0057501,2610.7,2610.6,7.54675258]
[1739327441397,0.0057501,2610.7,2610.6,8.01350952]
[1739327441696,3.2078,2611.5,2610.6,8.01350952]
[1739327441900,3.2078,2611.5,2611.0,3.2078]
[1739327442100,4.38324206,2611.2,2611.1,1.5839613]
[1739327442299,4.38324206,2611.4,2611.1,2.15458001]
[1739327442494,3.2078,2611.5,2611.2,0.41338873]
[1739327442709,1.1737,2611.6,2611.3,0.41338873]
[1739327443002,1.1794501,2611.6,2611.4,3.62118873]
[1739327443203,1.1794501,2611.6,2611.4,3.2078]
[1739327444708,0.0057501,2611.6,2611.4,3.2078]
[1739327444899,0.0057501,2611.6,2611.5,0.41271338]
[1739327445200,0.0057501,2611.6,2611.5,3.56435668]
[1739327445405,6.3594433,2612.2,2611.5,9.56435668]
[1739327445406,1.687,2612.1,2611.5,9.56435668]
[1739327445607,1.687,2612.1,2611.6,1.01411338]
[1739327445806,5.80471359,2612.1,2611.6,1.1869]
[1739327446505,5.81046369,2612.1,2611.5,40.8]
[1739327455909,3.1516433,2611.9,2611.5,40.8]
[1739327456110,1.1833,2611.8,2611.5,40.8]
[1739327456308,6.00744882,2611.8,2611.5,40.8]
[1739327459316,4.21854882,2611.8,2611.5,40.8]
[1739327459615,4.21854882,2611.8,2611.6,3.2078]
[1739327459811,0.0057501,2612.1,2611.7,0.41209477]
[1739327460012,0.0057501,2612.1,2611.8,0.6117]
[1739327461318,0.0057501,2612.1,2611.9,3.62021563]
[1739327461516,0.0057501,2612.1,2612.0,0.41241094]
[1739327462613,0.0057501,2612.1,2612.0,1.44762029]
[1739327462812,0.0057501,2612.1,2612.0,42.24757774]
[1739327463217,1.686,2612.6,2612.0,42.24757774]
[1739327463417,1.686,2612.6,2612.1,0.41236519]
[1739327463619,3.98639634,2612.5,2612.2,0.41236519]
[1739327463820,3.98639634,2612.5,2612.3,0.41236519]
[1739327464019,3.98639634,2612.5,2612.0,41.11345891]
[1739327464020,3.98639634,2612.5,2612.4,1.1275]
[1739327464223,3.4039,2613.0,2612.4,4.2791433]
[1739327464414,0.0057501,2612.7,2612.4,4.2791433]
[1739327464612,0.0057501,2612.7,2612.5,44.0078]
[1739327469721,4.27621871,2612.6,2612.5,44.0078]
[1739327470221,0.0057501,2612.7,2612.5,44.0078]
[1739327471123,0.0057501,2612.7,2612.6,0.41239701]
[1739327471823,0.0057501,2612.7,2612.6,41.21239701]
[1739327472721,0.0057501,2612.7,2612.6,41.2124368]
[1739327474828,0.0057501,2612.7,2612.6,41.21238441]
[1739327476422,3.2078,2613.2,2612.6,41.97801441]
[1739327476625,2.2715,2613.4,2612.9,3.2078]
[1739327476823,0.5865,2613.4,2613.0,0.5701]
[1739327477030,3.99806598,2613.3,2613.0,1.1751]
[1739327477328,3.99806598,2613.3,2613.1,40.8]
[1739327477831,0.5865,2613.4,2613.1,40.8]
[1739327478627,3.7381433,2613.4,2613.1,40.8]
[1739327478925,4.1420917,2613.3,2613.0,1.1751]
[1739327479325,4.1420917,2613.3,2613.1,40.8]
[1739327485539,4.1420917,2613.3,2613.2,0.5862]
[1739327488245,4.1420917,2613.3,2613.2,0.99944648]
[1739327489345,4.1420917,2613.3,2613.2,0.99976403]
[1739327491149,4.1420917,2613.3,2613.2,0.41356403]
[1739327492846,4.1420917,2613.3,2613.2,0.41378939]
[1739327496258,4.1420917,2613.3,2613.2,0.41391778]
[1739327496449,3.7943,2613.4,2613.2,0.41391778]
[1739327496649,3.7943,2613.4,2613.3,0.98981778]
[1739327497651,0.5865,2613.4,2613.3,0.98981778]
[1739327498358,0.00375948,2613.5,2613.3,4.14146108]
[1739327498551,1.684,2614.0,2613.4,3.62171778]
[1739327498753,6.6525,2614.1,2613.5,1.4907854]
[1739327499051,4.19840678,2614.0,2613.6,0.88137136]
[1739327499358,4.19840678,2614.0,2613.7,0.41391778]
[1739327499559,4.19840678,2614.0,2613.8,1.00871778]
[1739327499759,4.19840678,2614.0,2613.8,0.5948]
[1739327503859,4.19840678,2614.0,2613.6,0.00573877]
[1739327504659,3.1516433,2613.7,2613.6,0.00573877]
[1739327505067,7.29879706,2613.7,2613.6,0.00573877]
[1739327505465,7.93716813,2613.7,2613.6,0.00573877]
[1739327505861,13.93716813,2613.7,2612.8,3.797]
[1739327506157,6.3594433,2613.4,2612.8,3.797]
[1739327506358,6.3594433,2613.4,2612.9,40.8]
[1739327506567,4.33697013,2613.3,2612.9,40.8]
[1739327508165,3.21350101,2613.4,2613.2,3.2078]
[1739327508166,0.00570101,2613.4,2613.2,3.2078]
[1739327508361,0.00570101,2613.4,2613.3,3.7443433]
[1739327508867,0.00570101,2613.4,2613.3,4.15793246]
[1739327509060,0.00570101,2613.4,2613.3,44.95793246]
[1739327509264,2.2819,2613.9,2613.3,51.42497028]
[1739327509466,2.2819,2613.9,2613.5,3.2078]
[1739327509767,2.2819,2613.9,2613.6,1.48862698]
[1739327509964,2.2819,2613.9,2613.6,0.608]
[1739327510168,2.2819,2613.9,2613.7,0.41351264]
[1739327510466,0.5762,2614.1,2613.8,0.41351264]
[1739327510657,0.5762,2614.1,2613.9,0.41351264]
[1739327510857,0.5762,2614.1,2614.0,0.41351264]
[1739327511057,0.5762,2614.1,2614.0,41.21351264]
[1739327516164,0.5762,2614.1,2614.0,40.8]
[1739327516360,0.5762,2614.1,2614.0,41.21323048]
[1739327516567,0.5762,2614.1,2614.0,40.8]
[1739327518461,4.4062,2614.2,2614.0,40.8]
[1739327519960,3.8057,2614.2,2614.0,40.8]
[1739327520161,3.2078,2614.2,2614.0,40.8]
[1739327521170,4.8970257,2614.1,2614.0,40.8]
[1739327521667,0.5905,2614.1,2614.0,41.21311627]
[1739327522267,0.5905,2614.1,2614.0,40.8]
[1739327522666,4.87510899,2614.1,2614.0,40.8]
[1739327522866,4.87510899,2614.1,2614.0,41.21310666]
[1739327523369,4.87510899,2614.1,2614.0,40.8]
[1739327524067,3.2078,2614.2,2614.0,40.8]
[1739327524270,1.1442,2614.4,2614.1,0.41312856]
[1739327524472,1.1442,2614.4,2614.1,0.5653]
[1739327524676,4.25847583,2614.3,2614.2,0.98608532]
[1739327524864,4.25847583,2614.3,2614.2,1.55643405]
[1739327525261,0.6118,2614.7,2614.2,8.38226375]
[1739327525471,23.2538,2614.8,2614.3,0.87951707]
[1739327525773,23.2538,2614.8,2614.2,7.50279203]
[1739327525774,4.32586404,2614.7,2614.4,0.98343405]
[1739327525974,4.32586404,2614.7,2614.5,0.41308532]
[1739327526271,4.32586404,2614.7,2614.6,0.97838532]
[1739327526472,4.32586404,2614.7,2614.6,0.41308532]
[1739327527863,4.32586404,2614.7,2614.3,0.5653]
[1739327528063,4.32586404,2614.7,2614.4,0.98300808]
[1739327528264,4.32586404,2614.7,2614.5,0.41290423]
[1739327528470,4.32586404,2614.7,2614.6,0.41290423]
[1739327528884,1.1769,2614.8,2614.6,0.41290423]
[1739327529074,1.1769,2614.8,2614.7,0.41290423]
[1739327530174,1.1769,2614.8,2614.7,0.41273144]
[1739327530375,0.6118,2615.0,2614.7,0.41273144]
[1739327530579,0.6118,2615.0,2614.8,0.41261114]
[1739327530778,0.6118,2615.0,2614.6,1.1303]
[1739327530779,4.26758331,2614.9,2614.6,1.1303]
[1739327530979,4.26758331,2614.9,2614.7,0.41261082]
[1739327531281,4.26758331,2614.9,2614.8,44.36425412]
[1739327531480,3.2078,2615.1,2614.8,44.36425412]
[1739327531774,3.2078,2615.1,2614.8,43.9516433]
[1739327531979,3.2078,2615.4,2614.9,3.7204433]
[1739327532369,4.10730276,2615.3,2615.0,0.5579]
[1739327533271,3.3924,2615.6,2615.0,0.5579]
[1739327533272,3.3924,2615.6,2615.1,3.2078]
[1739327533677,4.34582726,2615.5,2615.1,3.2078]
[1739327536484,10.70527056,2615.5,2615.1,3.2078]
[1739327538078,10.70527056,2615.5,2614.8,40.8]
[1739327538280,6.3594433,2615.2,2614.8,40.8]
[1739327538475,1.7887,2615.1,2614.8,40.8]
[1739327538683,1.683,2615.0,2614.8,40.8]
[1739327538982,3.1516433,2614.9,2614.6,3.2078]
[1739327539179,7.45425566,2614.9,2614.6,3.2078]
[1739327539381,7.45425566,2614.9,2614.7,40.8]
[1739327540188,7.45425566,2614.9,2614.6,3.2078]
[1739327540581,3.2078,2614.8,2614.3,40.8]
[1739327541079,4.30454955,2614.7,2614.3,40.8]
[1739327541281,1.1786,2614.6,2614.3,40.8]
[1739327541583,1.7502,2614.6,2614.3,40.8]
[1739327541788,4.40479572,2614.5,2614.3,40.8]
[1739327541977,1.683,2614.4,2613.5,4.9511]
[1739327542181,3.1516433,2614.3,2613.5,4.3959]
[1739327542480,7.25197143,2614.3,2613.6,40.8]
[1739327545983,8.93497143,2614.3,2613.6,40.8]
[1739327547086,3.2078,2614.2,2613.7,0.41242652]
[1739327547288,3.2078,2614.2,2613.6,40.8]
[1739327547486,4.34352332,2614.1,2613.7,0.41239187]
[1739327547688,1.1112,2614.0,2613.6,40.8]
[1739327547989,1.1112,2614.0,2613.7,0.4123915]
[1739327548192,4.42081964,2613.9,2613.6,40.8]
[1739327549085,4.42081964,2613.9,2613.7,0.41235255]
[1739327549290,4.42081964,2613.9,2613.6,40.8]
[1739327550192,5.01431964,2613.9,2613.6,40.8]
[1739327550600,5.01431964,2613.9,2613.7,0.4122632]
[1739327550788,5.01431964,2613.9,2613.6,40.8]
[1739327551691,5.01431964,2613.9,2613.7,0.41222993]
[1739327551993,5.01431964,2613.9,2613.6,40.8]
[1739327554592,5.01431964,2613.9,2613.7,0.41206442]
[1739327554791,5.01431964,2613.9,2613.6,40.8]
[1739327554988,0.00573877,2614.1,2613.7,3.5637046]
[1739327555184,0.00573877,2614.1,2613.8,0.4120613]
[1739327555394,0.00573877,2614.1,2613.9,1.0010613]
[1739327555592,0.00573877,2614.1,2614.0,1.0037613]
[1739327555794,0.00573877,2614.1,2614.0,1.5849613]
[1739327555994,3.98892839,2614.1,2614.0,1.1729]
[1739327556195,3.98892839,2614.1,2613.6,44.0078]
[1739327556493,3.98892839,2614.1,2613.7,1.58493228]
[1739327556494,6.28272839,2614.1,2613.7,1.58493228]
[1739327556798,6.28272839,2614.1,2613.8,0.41203228]
[1739327557001,6.28272839,2614.1,2613.7,1.1729]
[1739327557193,6.28272839,2614.1,2613.8,0.41202855]
[1739327557399,6.28272839,2614.1,2613.7,1.1729]
[1739327557598,6.28272839,2614.1,2613.8,0.41202401]
[1739327557795,5.67192839,2614.1,2613.9,0.41202401]
[1739327557993,0.00573877,2614.1,2614.0,0.41201667]
[1739327558997,0.00573877,2614.1,2614.0,0.41199817]
[1739327559800,20.04,2615.1,2614.0,10.02889427]
[1739327559994,1.683,2615.0,2614.3,6.3594433]
[1739327560200,6.00643063,2615.0,2614.4,1.57839817]
[1739327560502,6.00643063,2615.0,2614.5,41.21199817]
[1739327560700,6.00643063,2615.0,2614.6,0.41199817]
[1739327560896,4.32343063,2615.0,2614.5,41.36882454]
[1739327561197,4.32343063,2615.0,2614.6,0.41194749]
[1739327561397,4.32343063,2615.0,2614.7,0.41194749]
[1739327561596,4.32343063,2615.0,2614.5,40.8]
[1739327561899,4.32343063,2615.0,2614.6,0.41193565]
[1739327562101,4.32343063,2615.0,2614.7,0.41193565]
[1739327562402,4.32343063,2615.0,2614.6,3.2078]
[1739327562895,4.32343063,2615.0,2614.6,3.8062]
[1739327564100,3.2078,2614.9,2614.4,0.5885]
[1739327564289,3.2078,2614.9,2614.5,0.41214534]
[1739327564601,3.98257897,2614.8,2614.2,44.0078]
[1739327564893,3.98257897,2614.8,2614.2,3.2078]
[1739327565293,3.98257897,2614.8,2614.2,44.0078]
[1739327566290,3.98257897,2614.8,2614.3,0.41256084]
[1739327566494,3.98257897,2614.8,2614.4,0.41256084]
[1739327566689,1.682,2614.7,2614.5,0.41271878]
[1739327566891,1.682,2614.7,2614.2,44.5854]
[1739327567096,4.34133841,2614.6,2614.3,0.41271489]
[1739327567291,4.34133841,2614.6,2614.4,0.98771336]
[1739327567498,4.34133841,2614.6,2614.5,0.41271336]
[1739327568798,4.34133841,2614.6,2614.5,3.62051336]
[1739327568997,21.722,2615.1,2614.5,4.65688082]
[1739327569201,21.722,2615.1,2614.6,1.030931]
[1739327569503,4.23463237,2615.0,2614.8,3.2078]
[1739327569698,4.23463237,2615.0,2614.9,0.98496622]
[1739327570605,20.04,2615.1,2614.9,0.98496622]
[1739327570906,20.04,2615.1,2615.0,0.41286622]
[1739327571299,20.04,2615.1,2615.0,0.98260542]
[1739327572005,20.04,2615.1,2615.0,0.41286622]
[1739327572203,3.2078,2615.2,2615.0,0.41286622]
[1739327572505,1.682,2615.4,2615.1,0.41286622]
[1739327572705,1.682,2615.4,2614.9,0.5721]
[1739327572900,5.96855886,2615.4,2615.0,0.41233751]
[1739327573103,4.28655886,2615.4,2615.1,0.41233751]
[1739327573405,1.682,2615.3,2615.2,0.41222501]
[1739327573606,4.28655886,2615.4,2615.2,0.41222501]
[1739327573807,4.22365332,2615.3,2615.1,0.5758]
[1739327574001,4.22365332,2615.3,2615.2,0.41221827]
[1739327574196,4.22365332,2615.4,2615.2,0.41221827]
[1739327574497,1.682,2616.3,2615.3,42.44225779]
[1739327574702,1.682,2616.3,2615.7,3.2078]
[1739327574904,4.03734348,2616.2,2615.8,1.56338465]
[1739327575206,4.03734348,2616.2,2615.8,1.1513]
[1739327575802,4.03734348,2616.2,2615.7,3.2078]
[1739327576002,1.7215,2616.1,2615.7,3.2078]
[1739327576204,4.8731433,2616.1,2615.7,3.2078]
[1739327576398,4.1610157,2616.0,2615.7,3.2078]
[1739327577806,4.1610157,2616.0,2615.8,3.56305769]
[1739327578000,4.1610157,2616.0,2615.8,3.1516433]
[1739327578901,4.1610157,2616.0,2615.7,3.2078]
[1739327580703,1.6964,2616.3,2615.4,1.1634]
[1739327580704,3.2078,2615.9,2615.4,1.1634]
[1739327580902,1.1418,2615.8,2615.4,1.1634]
[1739327581103,0.57,2615.7,2615.4,1.1634]
[1739327581510,4.39518332,2615.6,2615.4,1.1634]
[1739327581708,4.39518332,2615.6,2615.4,0.5685]
[1739327582207,4.39518332,2615.6,2615.3,44.0078]
[1739327582502,4.39518332,2615.6,2615.4,0.41137671]
[1739327582710,4.8898,2616.5,2615.5,4.12262001]
[1739327583022,4.67389054,2616.3,2615.8,6.3594433]
[1739327583307,0.5982,2616.3,2616.1,3.1516433]
[1739327583710,1.164,2616.4,2616.1,3.1516433]
[1739327584107,4.12274891,2616.3,2616.1,6.3594433]
[1739327584307,0.5621,2616.9,2616.2,4.72313457]
[1739327584511,0.5621,2616.9,2616.5,3.1516433]
[1739327584706,4.04575616,2616.8,2616.5,3.1516433]
[1739327585607,3.2078,2617.1,2616.7,3.2078]
[1739327585813,4.8987433,2617.9,2617.0,3.2078]
[1739327586109,4.21415218,2617.5,2617.0,3.2078]
[1739327586302,4.21415218,2617.5,2617.1,40.8]
[1739327586506,1.687,2617.8,2617.1,40.8]
[1739327586706,4.21415218,2617.4,2617.1,40.8]
[1739327586916,7.42195218,2617.7,2617.1,40.8]
[1739327587208,6.3594433,2617.3,2616.7,3.2078]
[1739327587405,1.7471,2617.2,2616.7,3.2078]
[1739327587610,5.97977599,2617.2,2616.4,3.2078]
[1739327587913,7.66777599,2617.2,2616.5,40.8]
[1739327588112,3.2078,2617.0,2616.5,40.8]
[1739327588616,4.42919167,2616.9,2616.5,40.8]
[1739327590915,8.44145316,2616.9,2616.4,3.2078]
[1739327591309,8.44145316,2616.9,2616.4,44.0078]
[1739327591505,8.44145316,2616.9,2616.4,40.8]
[1739327591914,3.2078,2616.6,2616.4,40.8]
[1739327592215,7.81047961,2616.5,2616.4,40.8]
[1739327594919,7.81047961,2616.5,2616.3,0.00573877]
[1739327596917,14.57497961,2616.5,2615.3,3.7653]
[1739327597221,3.2078,2616.0,2615.3,3.7653]
[1739327597423,2.8697,2615.9,2615.4,40.8]
[1739327597723,0.5951,2615.8,2615.4,40.8]
[1739327598120,4.16172511,2615.7,2615.4,40.8]
[1739327602621,7.36952511,2615.7,2615.4,40.8]
[1739327602813,11.3817866,2615.7,2615.4,40.8]
[1739327603212,11.3817866,2615.7,2615.3,3.21353877]
[1739327603416,11.3817866,2615.7,2615.3,0.00573877]
[1739327603820,11.3817866,2615.7,2615.3,40.80573877]
[1739327605721,3.2078,2615.4,2615.3,40.80573877]
[1739327605916,7.22006149,2615.4,2615.3,40.80573877]
[1739327606221,11.56401035,2615.4,2615.3,40.80573877]
[1739327607522,17.56401035,2615.4,2615.3,0.00573877]
[1739327607727,16.75719054,2615.4,2614.7,3.2078]
[1739327607932,2.2631,2615.3,2614.8,40.8]
[1739327608233,0.561,2615.2,2614.8,40.8]
[1739327608422,4.55091919,2615.2,2614.8,40.8]
[1739327609617,3.2078,2615.1,2614.8,40.8]
[1739327610026,4.052788,2615.0,2614.8,40.8]